fUST/lending_fUST_20250625
["ID","MTS","AMOUNT","RATE_DAILY","PERIOD"]
[367427792,1750795836694,-581.37,0.00016712,2]
[367427793,1750795836703,-460.0,0.00016712,2]
[367427794,1750795836713,-490.39937732,0.00016712,2]
[367427795,1750795836722,-460.0,0.00016712,2]
[367427796,1750795836732,-460.0,0.00016712,2]
[367427797,1750795836741,-460.0,0.00016712,2]
[367427798,1750795836751,-403.68826993,0.00016712,2]
[367427799,1750795836760,-1134.92,0.00016712,2]
[367427800,1750795836769,-460.0,0.00016712,2]
[367427801,1750795836778,-460.0,0.00016712,2]
[367427802,1750795836788,-460.0,0.00016712,2]
[367427803,1750795836797,-465.37962827,0.00016712,2]
[367427804,1750795836810,-461.17561917,0.00016712,2]
[367427805,1750795836819,-460.0,0.00016712,2]
[367427806,1750795836829,-460.0,0.00016712,2]
[367427807,1750795836838,-460.0,0.00016712,2]
[367427808,1750795836848,-460.0,0.00016712,2]
[367427809,1750795836857,-460.0,0.00016712,2]
[367427810,1750795836867,-460.0,0.00016712,2]
[367427811,1750795836877,-460.0,0.00016712,2]
[367427812,1750795836887,-460.0,0.00016712,2]
[367427813,1750795836896,-460.0,0.00016712,2]
[367427814,1750795836905,-460.0,0.00016712,2]
[367427815,1750795836914,-460.0,0.00016712,2]
[367427816,1750795836923,-460.0,0.00016712,2]
[367427817,1750795836932,-460.0,0.00016712,2]
[367427818,1750795836942,-460.0,0.00016712,2]
[367427819,1750795836951,-460.0,0.00016712,2]
[367427820,1750795836960,-679.84,0.00016712,2]
[367427821,1750795836969,-474.97,0.00016712,2]
[367427822,1750795836978,-460.0,0.00016712,2]
[367427823,1750795836988,-461.27565824,0.00016712,2]
[367427824,1750795836997,-460.0,0.00016712,2]
[367427825,1750795837006,-460.0,0.00016712,2]
[367427826,1750795837015,-460.0,0.00016712,2]
[367427827,1750795837024,-460.0,0.00016712,2]
[367427828,1750795837034,-460.0,0.00016712,2]
[367427829,1750795837044,-460.0,0.00016712,2]
[367427830,1750795837053,-460.0,0.00016712,2]
[367427831,1750795837062,-467.55100106,0.00016712,2]
[367427832,1750795837071,-460.0,0.00016712,2]
[367427833,1750795837080,-460.0,0.00016712,2]
[367427834,1750795837090,-200.63647032,0.00016712,2]
[367427835,1750795837099,-441.69530689,0.00016712,2]
[367427836,1750795837108,-460.0,0.00016712,2]
[367427837,1750795837117,-2109.59,0.00016712,2]
[367427838,1750795837127,-568.41,0.00016712,2]
[367427839,1750795837136,-460.0,0.00016712,2]
[367427840,1750795837145,-335.04430611,0.00016712,2]
[367427841,1750795837154,-460.0,0.00016712,2]
[367427842,1750795837164,-540.30113278,0.00016712,2]
[367427843,1750795837173,-460.0,0.00016712,2]
[367427844,1750795837182,-460.0,0.00016712,2]
[367427845,1750795837191,-460.0,0.00016712,2]
[367427846,1750795837200,-782.71,0.00016712,2]
[367427847,1750795837210,-460.0,0.00016712,2]
[367427848,1750795837220,-460.0,0.00016712,2]
[367427849,1750795837229,-460.0,0.00016712,2]
[367427850,1750795837238,-400.0,0.00016712,2]
[367427851,1750795837247,-460.0,0.00016712,2]
[367427852,1750795837257,-316.06062834,0.00016712,2]
[367427853,1750795837266,-489.52223856,0.00016712,2]
[367427854,1750795837276,-493.07116234,0.00016712,2]
[367427855,1750795837286,-460.0,0.00016712,2]
[367427856,1750795837296,-690.51,0.00016712,2]
[367427857,1750795837305,-460.0,0.00016712,2]
[367427858,1750795837315,-460.0,0.00016712,2]
[367427859,1750795837325,-400.05241111,0.00016712,2]
[367427860,1750795837335,-460.0,0.00016712,2]
[367427861,1750795837345,-814.67,0.00016712,2]
[367427862,1750795837355,-460.0,0.00016712,2]
[367427863,1750795837364,-460.0,0.00016712,2]
[367427864,1750795837374,-434.79717107,0.00016712,2]
[367427865,1750795837383,-286.51916417,0.00016886,2]
[367427866,1750795837392,-500.0,0.00016887,2]
[367427867,1750795837402,-450.11997304,0.00016926,2]
[367427868,1750795837412,-171.19469755,0.00016926,2]
[367427869,1750795837422,-500.0,0.00016926,2]
[367427870,1750795837432,-500.0,0.00016955,2]
[367427871,1750795837442,-500.0,0.00016955,2]
[367427872,1750795837452,-460.0,0.00016986,2]
[367427873,1750795837462,-460.0,0.00016986,2]
[367427874,1750795837471,-466.7896856,0.00016986,2]
[367427875,1750795837481,-460.0,0.00016986,2]
[367427876,1750795837491,-536.33539886,0.00016986,2]
[367427877,1750795837500,-460.0,0.00016986,2]
[367427878,1750795837510,-460.0,0.00016986,2]
[367427879,1750795837520,-460.0,0.00016986,2]
[367427880,1750795837529,-460.0,0.00016986,2]
[367427881,1750795837540,-460.0,0.00016986,2]
[367427882,1750795837550,-537.77,0.00016986,2]
[367427883,1750795837560,-460.0,0.00016986,2]
[367427884,1750795837569,-460.0,0.00016986,2]
[367427885,1750795837579,-419.46328513,0.00016986,2]
[367427886,1750795837589,-460.0,0.00016986,2]
[367427887,1750795837599,-460.0,0.00016986,2]
[367427888,1750795837608,-231.38154714,0.00016986,2]
[367427889,1750795837618,-460.0,0.00016986,2]
[367427890,1750795837628,-460.0,0.00016986,2]
[367427891,1750795837637,-470.78043632,0.00016986,2]
[367427892,1750795837647,-460.0,0.00016986,2]
[367427893,1750795837657,-460.0,0.00016986,2]
[367427895,1750795837666,-468.8777859,0.00016986,2]
[367427897,1750795837676,-164.59301143,0.00016986,2]
[367427899,1750795837820,-295.40698857,0.00016986,2]
[367427900,1750795837830,-460.0,0.00016986,2]
[367427901,1750795837840,-204.64884297,0.00016986,2]
[367427902,1750795837852,-512.88115703,0.00016986,2]
[367427903,1750795837861,-93.96136386,0.00016986,2]
[367427904,1750795837878,-460.0,0.00016438,2]
[367427905,1750795837888,-366.03863614,0.00016986,2]
[367427906,1750795837897,-750.32,0.00016986,2]
[367427907,1750795837907,-460.0,0.00016986,2]
[367427908,1750795837916,-460.0,0.00016986,2]
[367427909,1750795837926,-460.0,0.00016986,2]
[367427910,1750795837935,-460.0,0.00016986,2]
[367427911,1750795837945,-460.0,0.00016986,2]
[367427912,1750795837955,-1134.92,0.00016986,2]
[367427913,1750795837964,-460.0,0.00016986,2]
[367427914,1750795837974,-460.0,0.00016986,2]
[367427915,1750795837984,-478.93753493,0.00016986,2]
[367427916,1750795837993,-460.0,0.00016986,2]
[367427917,1750795838002,-460.0,0.00016986,2]
[367427918,1750795838012,-460.0,0.00016986,2]
[367427919,1750795838021,-460.0,0.00016986,2]
[367427920,1750795838031,-476.72231334,0.00016986,2]
[367427921,1750795838041,-460.0,0.00016986,2]
[367427922,1750795838050,-460.0,0.00016986,2]
[367427923,1750795838059,-460.0,0.00016986,2]
[367427924,1750795838069,-460.0,0.00016986,2]
[367427925,1750795838078,-679.84,0.00016986,2]
[367427926,1750795838087,-471.94992726,0.00016986,2]
[367427927,1750795838096,-460.0,0.00016986,2]
[367427928,1750795838106,-472.8720804,0.00016986,2]
[367427929,1750795838115,-74.44717751,0.00016986,2]
[367427931,1750795838128,-389.56432989,0.00016986,2]
[367427933,1750795838137,-460.0,0.00016986,2]
[367427935,1750795838180,-460.0,0.00016986,2]
[367427936,1750795838190,-460.0,0.00016986,2]
[367427937,1750795838199,-2109.59,0.00016986,2]
[367427938,1750795838208,-460.0,0.00016986,2]
[367427939,1750795838218,-460.0,0.00016986,2]
[367427940,1750795838227,-482.35509549,0.00016986,2]
[367427941,1750795838236,-460.0,0.00016986,2]
[367427942,1750795838245,-475.54587946,0.00016986,2]
[367427944,1750795838254,-460.0,0.00016986,2]
[367427946,1750795838264,-782.71,0.00016986,2]
[367427948,1750795838273,-466.21013475,0.00016986,2]
[367427950,1750795838283,-558.76534402,0.00016986,2]
[367427952,1750795838292,-460.0,0.00016986,2]
[367427954,1750795838301,-565.62760564,0.00016986,2]
[367427956,1750795838310,-460.0,0.00016986,2]
[367427958,1750795838319,-690.51,0.00016986,2]
[367427960,1750795838329,-460.0,0.00016986,2]
[367427962,1750795838337,-814.67,0.00016986,2]
[367427964,1750795838346,-460.0,0.00016986,2]
[367427966,1750795838355,-460.0,0.00016986,2]
[367427968,1750795838364,-500.0,0.00016995,2]
[367427970,1750795838373,-500.0,0.00017035,2]
[367427972,1750795838382,-500.0,0.00017089,2]
[367427974,1750795838391,-329.88683881,0.00017218,2]
[367427976,1750795838401,-437.8491313,0.0001726,2]
[367427978,1750795838410,-460.0,0.0001726,2]
[367427980,1750795838419,-460.0,0.0001726,2]
[367427981,1750795838428,-429.15,0.0001726,2]
[367427983,1750795838437,-460.0,0.0001726,2]
[367427985,1750795838446,-460.0,0.0001726,2]
[367427987,1750795838456,-460.0,0.0001726,2]
[367427990,1750795838465,-557.32921929,0.0001726,2]
[367427992,1750795838475,-460.0,0.0001726,2]
[367427994,1750795838485,-460.0,0.0001726,2]
[367427996,1750795838494,-717.53,0.0001726,2]
[367427998,1750795838503,-460.0,0.0001726,2]
[367428000,1750795838513,-750.32,0.0001726,2]
[367428002,1750795838521,-460.0,0.0001726,2]
[367428004,1750795838530,-460.0,0.0001726,2]
[367428006,1750795838542,-460.0,0.0001726,2]
[367428008,1750795838551,-460.0,0.0001726,2]
[367428010,1750795838560,-1134.92,0.0001726,2]
[367428011,1750795838569,-460.0,0.0001726,2]
[367428013,1750795838578,-460.0,0.0001726,2]
[367428015,1750795838588,-495.64,0.0001726,2]
[367428017,1750795838597,-460.0,0.0001726,2]
[367428019,1750795838606,-460.0,0.0001726,2]
[367428021,1750795838615,-390.0,0.0001726,2]
[367428023,1750795838625,-512.64,0.0001726,2]
[367428025,1750795838634,-460.0,0.0001726,2]
[367428027,1750795838643,-460.0,0.0001726,2]
[367428029,1750795838652,-679.84,0.0001726,2]
[367428031,1750795838661,-541.98322955,0.0001726,2]
[367428033,1750795838670,-460.0,0.0001726,2]
[367428035,1750795838678,-460.0,0.0001726,2]
[367428037,1750795838687,-2109.59,0.0001726,2]
[367428039,1750795838696,-460.0,0.0001726,2]
[367428041,1750795838706,-460.0,0.0001726,2]
[367428043,1750795838715,-460.0,0.0001726,2]
[367428045,1750795838724,-782.71,0.0001726,2]
[367428047,1750795838733,-506.00790402,0.0001726,2]
[367428049,1750795838741,-690.51,0.0001726,2]
[367428051,1750795838751,-460.0,0.0001726,2]
[367428053,1750795838762,-814.67,0.0001726,2]
[367428055,1750795838771,-460.0,0.0001726,2]
[367428057,1750795838780,-460.0,0.0001726,2]
[367428059,1750795838790,-1000.0,0.00017435,2]
[367428061,1750795838799,-1000.0,0.00017474,2]
[367428063,1750795838810,-479.69726788,0.00017534,2]
[367428065,1750795838820,-322.66025358,0.00017534,2]
[367428067,1750795838829,-354.89,0.00017534,2]
[367428069,1750795838838,-460.0,0.00017534,2]
[367428071,1750795838847,-460.0,0.00017534,2]
[367428073,1750795838858,-460.0,0.00017534,2]
[367428076,1750795838873,-717.53,0.00017534,2]
[367428078,1750795838887,-460.0,0.00017534,2]
[367428080,1750795838897,-750.32,0.00017534,2]
[367428082,1750795838906,-460.0,0.00017534,2]
[367428084,1750795838916,-203.87,0.00017534,2]
[367428086,1750795838925,-460.0,0.00017534,2]
[367428087,1750795838946,-1134.92,0.00017534,2]
[367428090,1750795838955,-408.31,0.00017534,2]
[367428092,1750795838964,-460.0,0.00017534,2]
[367428094,1750795838974,-487.38438226,0.00017534,2]
[367428096,1750795838983,-460.0,0.00017534,2]
[367428098,1750795838993,-460.0,0.00017534,2]
[367428100,1750795839002,-679.84,0.00017534,2]
[367428102,1750795839010,-460.0,0.00017534,2]
[367428104,1750795839019,-460.0,0.00017534,2]
[367428106,1750795839028,-2109.59,0.00017534,2]
[367428108,1750795839039,-460.0,0.00017534,2]
[367428110,1750795839048,-460.0,0.00017534,2]
[367428112,1750795839057,-416.45,0.00017534,2]
[367428114,1750795839066,-782.71,0.00017534,2]
[367428116,1750795839075,-690.51,0.00017534,2]
[367428118,1750795839084,-460.0,0.00017534,2]
[367428120,1750795839093,-814.67,0.00017534,2]
[367428122,1750795839102,-460.0,0.00017534,2]
[367428124,1750795839111,-427.0,0.00017542,2]
[367428126,1750795839120,-500.0,0.00017543,2]
[367428128,1750795839129,-1688.0,0.00017557,2]
[367428129,1750795839137,-207.4,0.00017557,2]
[367428131,1750795839146,-500.0,0.00017557,2]
[367428133,1750795839155,-500.0,0.00017557,2]
[367428136,1750795839165,-500.0,0.00017557,2]
[367428138,1750795839175,-151.3462781,0.00017557,2]
[367428139,1750795839184,-500.0,0.00017557,2]
[367428141,1750795839193,-500.0,0.00017557,2]
[367428143,1750795839202,-500.0,0.00017557,2]
[367428145,1750795839211,-500.0,0.00017557,2]
[367428147,1750795839220,-500.0,0.00017557,2]
[367428150,1750795839230,-500.0,0.00017557,2]
[367428152,1750795839239,-500.0,0.00017557,2]
[367428153,1750795839248,-500.0,0.00017557,2]
[367428155,1750795839257,-500.0,0.00017557,2]
[367428157,1750795839267,-2171.97637421,0.00017557,2]
[367428210,1750795839729,-280.44,0.00016438,2]
[367428212,1750795839741,-179.56,0.00016438,2]
[367428214,1750795839751,-460.0,0.00017534,2]
[367428216,1750795839761,-2828.02362579,0.00017557,2]
[367428218,1750795839772,-25000.0,0.00017557,2]
[367428220,1750795839783,-160.0,0.00017566,2]
[367428222,1750795839793,-160.0,0.00017566,2]
[367428224,1750795839802,-160.0,0.00017566,2]
[367428227,1750795839816,-230.20892031,0.00017566,2]
[367428229,1750795839826,-425.14181427,0.00017566,2]
[367428233,1750795839836,-160.0,0.00017566,2]
[367428235,1750795839846,-836.80226758,0.00017566,2]
[367428237,1750795839855,-160.0,0.00017566,2]
[367428239,1750795839865,-846.68469334,0.00017566,2]
[367428241,1750795839875,-213.66798275,0.00017566,2]
[367428243,1750795839884,-160.0,0.00017566,2]
[367428245,1750795839895,-12556.00642039,0.00017566,2]
[367428247,1750795839905,-524.15841286,0.00017568,2]
[367428249,1750795839915,-610.02,0.00017573,2]
[367428251,1750795839924,-465.02704443,0.00017573,2]
[367428253,1750795839934,-460.0,0.00017573,2]
[367428255,1750795839943,-460.0,0.00017573,2]
[367428257,1750795839954,-460.0,0.00017573,2]
[367428259,1750795839964,-700.7,0.00017573,2]
[367428261,1750795839976,-404.83564894,0.00017573,2]
[367428264,1750795839986,-460.0,0.00017573,2]
[367428266,1750795839997,-476.16,0.00017573,2]
[367428268,1750795840007,-1534.07,0.00017573,2]
[367428270,1750795840017,-562.99,0.00017573,2]
[367428272,1750795840027,-460.0,0.00017573,2]
[367428274,1750795840036,-507.41052168,0.00017583,2]
[367428276,1750795840046,-1750.456,0.00017612,2]
[367428278,1750795840056,-427.0,0.00017635,2]
[367428280,1750795840065,-1815.222872,0.00017667,2]
[367428282,1750795840075,-427.0,0.00017672,2]
[367428284,1750795840086,-1882.38611826,0.00017722,2]
[367428286,1750795840096,-255.74462247,0.00017777,2]
[367428288,1750795840106,-460.0,0.00017808,2]
[367428290,1750795840116,-460.0,0.00017808,2]
[367428292,1750795840125,-460.0,0.00017808,2]
[367428294,1750795840135,-717.53,0.00017808,2]
[367428296,1750795840144,-460.0,0.00017808,2]
[367428298,1750795840154,-750.32,0.00017808,2]
[367428300,1750795840164,-460.0,0.00017808,2]
[367428302,1750795840173,-460.0,0.00017808,2]
[367428304,1750795840183,-1134.92,0.00017808,2]
[367428306,1750795840193,-460.0,0.00017808,2]
[367428308,1750795840203,-460.0,0.00017808,2]
[367428311,1750795840213,-679.84,0.00017808,2]
[367428313,1750795840223,-460.0,0.00017808,2]
[367428315,1750795840233,-460.0,0.00017808,2]
[367428317,1750795840243,-2109.59,0.00017808,2]
[367428319,1750795840252,-460.0,0.00017808,2]
[367428320,1750795840262,-511.48,0.00017808,2]
[367428323,1750795840272,-782.71,0.00017808,2]
[367428325,1750795840282,-690.51,0.00017808,2]
[367428326,1750795840291,-460.0,0.00017808,2]
[367428328,1750795840301,-814.67,0.00017808,2]
[367428330,1750795840311,-460.0,0.00017808,2]
[367428332,1750795840321,-460.0,0.00017808,2]
[367428335,1750795840331,-610.02,0.00017847,2]
[367428338,1750795840341,-460.0,0.00017847,2]
[367428341,1750795840351,-460.0,0.00017847,2]
[367428343,1750795840361,-700.7,0.00017847,2]
[367428345,1750795840371,-476.16,0.00017847,2]
[367428347,1750795840381,-1534.07,0.00017847,2]
[367428349,1750795840391,-562.99,0.00017847,2]
[367428351,1750795840402,-460.0,0.00017847,2]
[367428353,1750795840411,-427.0,0.00017857,2]
[367428355,1750795840422,-427.0,0.00017919,2]
[367428357,1750795840432,-427.0,0.00017924,2]
[367428359,1750795840442,-427.0,0.00017938,2]
[367428361,1750795840452,-500.0,0.00017945,2]
[367428363,1750795840462,-420.0,0.00017963,2]
[367428365,1750795840472,-287.0,0.00017963,2]
[367428367,1750795840481,-420.0,0.00017963,2]
[367428370,1750795840491,-1500.0,0.00017983,2]
[367428372,1750795840501,-365.8215413,0.00018,2]
[367428374,1750795840511,-1500.0,0.00018022,2]
[367428376,1750795840520,-427.0,0.00018039,2]
[367428378,1750795840530,-1151.0,0.00018053,2]
[367428380,1750795840540,-588.0,0.00018063,2]
[367428382,1750795840550,-370.44,0.00018072,3]
[367428384,1750795840560,-460.0,0.00018082,2]
[367428386,1750795840570,-460.0,0.00018082,2]
[367428388,1750795840581,-460.0,0.00018082,2]
[367428390,1750795840591,-717.53,0.00018082,2]
[367428392,1750795840600,-460.0,0.00018082,2]
[367428394,1750795840611,-750.32,0.00018082,2]
[367428396,1750795840621,-460.0,0.00018082,2]
[367428398,1750795840630,-460.0,0.00018082,2]
[367428400,1750795840640,-1134.92,0.00018082,2]
[367428402,1750795840650,-460.0,0.00018082,2]
[367428404,1750795840660,-460.0,0.00018082,2]
[367428406,1750795840670,-679.84,0.00018082,2]
[367428408,1750795840680,-460.0,0.00018082,2]
[367428410,1750795840690,-460.0,0.00018082,2]
[367428412,1750795840700,-2109.59,0.00018082,2]
[367428414,1750795840709,-251.76,0.00018082,2]
[367428416,1750795840719,-782.71,0.00018082,2]
[367428418,1750795840728,-690.51,0.00018082,2]
[367428420,1750795840738,-460.0,0.00018082,2]
[367428422,1750795840749,-814.67,0.00018082,2]
[367428424,1750795840758,-460.0,0.00018082,2]
[367428426,1750795840769,-460.0,0.00018082,2]
[367428428,1750795840779,-329.88683881,0.00018099,2]
[367428430,1750795840789,-610.02,0.00018121,2]
[367428432,1750795840799,-460.0,0.00018121,2]
[367428434,1750795840811,-460.0,0.00018121,2]
[367428436,1750795840821,-700.7,0.00018121,2]
[367428438,1750795840830,-476.16,0.00018121,2]
[367428440,1750795840840,-1534.07,0.00018121,2]
[367428442,1750795840850,-562.99,0.00018121,2]
[367428444,1750795840859,-460.0,0.00018356,2]
[367428446,1750795840869,-460.0,0.00018356,2]
[367428448,1750795840879,-460.0,0.00018356,2]
[367428449,1750795840891,-717.53,0.00018356,2]
[367428451,1750795840901,-460.0,0.00018356,2]
[367428453,1750795840911,-750.32,0.00018356,2]
[367428455,1750795840920,-460.0,0.00018356,2]
[367428457,1750795840931,-460.0,0.00018356,2]
[367428460,1750795840940,-1134.92,0.00018356,2]
[367428462,1750795840951,-460.0,0.00018356,2]
[367428463,1750795840961,-460.0,0.00018356,2]
[367428465,1750795840971,-679.84,0.00018356,2]
[367428468,1750795840982,-460.0,0.00018356,2]
[367428469,1750795840992,-460.0,0.00018356,2]
[367428471,1750795841002,-2109.59,0.00018356,2]
[367428473,1750795841012,-782.71,0.00018356,2]
[367428475,1750795841022,-690.51,0.00018356,2]
[367428478,1750795841033,-372.38530262,0.00018356,2]
[367428479,1750795841043,-814.67,0.00018356,2]
[367428481,1750795841053,-460.0,0.00018356,2]
[367428483,1750795841062,-460.0,0.00018356,2]
[367428485,1750795841072,-588.0,0.00018381,2]
[367428487,1750795841082,-610.02,0.00018395,2]
[367428489,1750795841091,-460.0,0.00018395,2]
[367428491,1750795841101,-430.0,0.00018395,2]
[367428493,1750795841110,-700.7,0.00018395,2]
[367428495,1750795841120,-476.16,0.00018395,2]
[367428497,1750795841130,-1534.07,0.00018395,2]
[367428499,1750795841140,-562.99,0.00018395,2]
[367428501,1750795841149,-1000.0,0.00018493,2]
[367428503,1750795841159,-406.0,0.00018521,2]
[367428505,1750795841169,-2000.0,0.00018531,2]
[367428507,1750795841179,-2000.0,0.0001857,2]
[367428509,1750795841189,-150.0,0.00018597,2]
[367428511,1750795841199,-150.0,0.00018597,2]
[367428513,1750795841209,-500.0,0.00018629,2]
[367428515,1750795841219,-342.01003407,0.0001863,2]
[367428517,1750795841228,-460.0,0.0001863,2]
[367428519,1750795841238,-460.0,0.0001863,2]
[367428521,1750795841248,-717.53,0.0001863,2]
[367428523,1750795841258,-542.6,0.0001863,2]
[367428525,1750795841270,-750.32,0.0001863,2]
[367428527,1750795841280,-264.18635615,0.0001863,2]
[367428529,1750795841290,-460.0,0.0001863,2]
[367428531,1750795841300,-1134.92,0.0001863,2]
[367428533,1750795841310,-460.0,0.0001863,2]
[367428535,1750795841320,-460.0,0.0001863,2]
[367428537,1750795841330,-679.84,0.0001863,2]
[367428539,1750795841340,-460.0,0.0001863,2]
[367428541,1750795841349,-460.0,0.0001863,2]
[367428543,1750795841359,-2109.59,0.0001863,2]
[367428545,1750795841369,-782.71,0.0001863,2]
[367428547,1750795841379,-690.51,0.0001863,2]
[367428549,1750795841389,-814.67,0.0001863,2]
[367428551,1750795841399,-460.0,0.0001863,2]
[367428553,1750795841409,-460.0,0.0001863,2]
[367428555,1750795841419,-460.0,0.00018635,2]
[367428557,1750795841428,-460.0,0.00018635,2]
[367428559,1750795841438,-191.56450983,0.00018635,2]
[367428561,1750795841448,-610.02,0.00018669,2]
[367428563,1750795841458,-460.0,0.00018669,2]
[367428565,1750795841467,-700.7,0.00018669,2]
[367428567,1750795841477,-476.16,0.00018669,2]
[367428569,1750795841487,-1534.07,0.00018669,2]
[367428571,1750795841496,-562.99,0.00018669,2]
[367428573,1750795841506,-476.99208843,0.00018755,2]
[367428575,1750795841516,-150.0,0.00018794,2]
[367428577,1750795841526,-150.0,0.00018794,2]
[367428579,1750795841538,-150.0,0.00018794,2]
[367428581,1750795841548,-150.0,0.00018794,2]
[367428583,1750795841558,-965.0,0.00018794,2]
[367428585,1750795841568,-2160.0,0.00018794,2]
[367428587,1750795841578,-654.0,0.00018794,2]
[367428589,1750795841588,-460.0,0.00018904,2]
[367428591,1750795841598,-460.0,0.00018904,2]
[367428593,1750795841608,-717.53,0.00018904,2]
[367428595,1750795841617,-750.32,0.00018904,2]
[367428597,1750795841627,-460.0,0.00018904,2]
[367428599,1750795841637,-1134.92,0.00018904,2]
[367428601,1750795841647,-460.0,0.00018904,2]
[367428603,1750795841656,-460.0,0.00018904,2]
[367428605,1750795841666,-679.84,0.00018904,2]
[367428607,1750795841676,-460.0,0.00018904,2]
[367428609,1750795841686,-460.0,0.00018904,2]
[367428611,1750795841695,-2109.59,0.00018904,2]
[367428613,1750795841704,-782.71,0.00018904,2]
[367428615,1750795841715,-690.51,0.00018904,2]
[367428617,1750795841726,-814.67,0.00018904,2]
[367428619,1750795841735,-460.0,0.00018904,2]
[367428621,1750795841745,-260.28444397,0.00018904,2]
[367428623,1750795841756,-215.0738,0.00018926,2]
[367428625,1750795841767,-610.02,0.00018943,2]
[367428627,1750795841777,-460.0,0.00018943,2]
[367428629,1750795841789,-700.7,0.00018943,2]
[367428631,1750795841799,-476.16,0.00018943,2]
[367428633,1750795841812,-1534.07,0.00018943,2]
[367428635,1750795841823,-562.99,0.00018943,2]
[367428652,1750795841981,-329.88683881,0.00018979,2]
[367428654,1750795841993,-1165.541828,0.00019011,2]
[367428656,1750795842002,-588.0,0.00019018,2]
[367428658,1750795842011,-179.87408814,0.0001904,2]
[367428660,1750795842020,-1500.0,0.00019041,2]
[367428662,1750795842030,-500.0,0.00019068,2]
[367428663,1750795842040,-1418.82213867,0.00019079,2]
[367428665,1750795842049,-1795.26996426,0.00019111,2]
[367428667,1750795842059,-2500.0,0.00019118,2]
[367428669,1750795842069,-460.0,0.00019178,2]
[367428671,1750795842078,-460.0,0.00019178,2]
[367428673,1750795842087,-717.53,0.00019178,2]
[367428675,1750795842097,-750.32,0.00019178,2]
[367428677,1750795842107,-460.0,0.00019178,2]
[367428679,1750795842116,-1134.92,0.00019178,2]
[367428681,1750795842125,-460.0,0.00019178,2]
[367428683,1750795842135,-460.0,0.00019178,2]
[367428685,1750795842144,-679.84,0.00019178,2]
[367428687,1750795842153,-460.0,0.00019178,2]
[367428689,1750795842162,-460.0,0.00019178,2]
[367428691,1750795842171,-151.0,0.00019178,2]
[367428693,1750795842180,-2109.59,0.00019178,2]
[367428695,1750795842188,-782.71,0.00019178,2]
[367428696,1750795842198,-151.0,0.00019178,2]
[367428698,1750795842207,-690.51,0.00019178,2]
[367428700,1750795842216,-151.0,0.00019178,2]
[367428702,1750795842226,-814.67,0.00019178,2]
[367428704,1750795842235,-460.0,0.00019178,2]
[367428706,1750795842245,-645.348094,0.00019178,2]
[367428708,1750795842254,-610.02,0.00019217,2]
[367428710,1750795842265,-460.0,0.00019217,2]
[367428712,1750795842274,-700.7,0.00019217,2]
[367428714,1750795842284,-476.16,0.00019217,2]
[367428716,1750795842293,-1534.07,0.00019217,2]
[367428718,1750795842302,-562.99,0.00019217,2]
[367428720,1750795842312,-189.937362,0.00019329,2]
[367428722,1750795842323,-151.0,0.00019329,2]